fUSD/lending_fUSD_20240419
["ID","MTS","AMOUNT","RATE_DAILY","PERIOD"]
[322938884,1713535862333,-1362.66,0.00015173,2]
[322938885,1713535862343,-561.12,0.00015173,2]
[322938886,1713535862352,-1379.06,0.00015173,2]
[322938887,1713535862363,-649.05103252,0.00015173,2]
[322938888,1713535862372,-742.62,0.00015173,2]
[322938889,1713535862383,-500.0,0.00015173,2]
[322938890,1713535862392,-1011.65,0.00015173,2]
[322938891,1713535862402,-500.0,0.00015173,2]
[322938892,1713535862412,-2543.95,0.00015173,2]
[322938893,1713535862421,-4473.17,0.00015173,2]
[322938894,1713535862431,-2552.14,0.00015173,2]
[322938895,1713535862440,-1028.52,0.00015173,2]
[322938896,1713535862450,-1252.41,0.00015173,2]
[322938897,1713535862460,-536.36805037,0.00015173,2]
[322938898,1713535862469,-500.0,0.00015173,2]
[322938899,1713535862479,-1567.94,0.00015173,2]
[322938900,1713535862489,-3390.43,0.00015173,2]
[322938901,1713535862498,-786.27,0.00015173,2]
[322938902,1713535862508,-2599.5,0.00015173,2]
[322938903,1713535862518,-6238.49,0.00015173,2]
[322938904,1713535862527,-2793.9,0.00015173,2]
[322938905,1713535862538,-500.0,0.00015173,2]
[322938906,1713535862547,-2970.02,0.00015173,2]
[322938907,1713535862562,-3456.79,0.00015173,2]
[322938908,1713535862572,-5261.38,0.00015173,2]
[322938909,1713535862582,-1844.51,0.00015173,2]
[322938910,1713535862592,-1171.98,0.00015173,2]
[322938911,1713535862606,-3653.25,0.00015173,2]
[322938912,1713535862616,-3070.45,0.00015173,2]
[322938913,1713535862625,-500.0,0.00015173,2]
[322938914,1713535862635,-3400.27,0.00015173,2]
[322938915,1713535862646,-3462.89,0.00015173,2]
[322938916,1713535862656,-3198.72,0.00015173,2]
[322938917,1713535862667,-3593.12,0.00015173,2]
[322938918,1713535862677,-500.0,0.00015173,2]
[322938919,1713535862688,-4054.13,0.00015173,2]
[322938920,1713535862697,-4947.91,0.00015173,2]
[322938921,1713535862707,-538.19,0.00015173,2]
[322938922,1713535862717,-500.0,0.00015173,2]
[322938923,1713535862727,-684.87,0.00015173,2]
[322938924,1713535862737,-5370.17,0.0001527,2]
[322938925,1713535862748,-7981.14,0.0001527,2]
[322938926,1713535862757,-18824.22,0.0001527,2]
[322938927,1713535862767,-9916.57,0.0001527,2]
[322938928,1713535862777,-12812.3,0.0001527,2]
[322938929,1713535862788,-18600.6,0.0001527,2]
[322938930,1713535862798,-7936.53,0.0001527,2]
[322938931,1713535862812,-6466.93,0.0001527,2]
[322938932,1713535862822,-10549.14,0.0001527,2]
[322938933,1713535862832,-4175.74,0.0001527,2]
[322938934,1713535862841,-1098.4,0.0001527,2]
[322938935,1713535862852,-2521.91,0.0001527,2]
[322938936,1713535862862,-6368.46,0.0001527,2]
[322938937,1713535862872,-6553.48,0.0001527,2]
[322938938,1713535862882,-584.5,0.0001527,2]
[322938939,1713535862892,-3986.6,0.0001527,2]
[322938940,1713535862902,-2327.06,0.0001527,2]
[322938941,1713535862912,-20291.19,0.0001527,2]
[322938942,1713535862922,-78928.58,0.0001527,2]
[322938943,1713535862932,-20409.19,0.0001527,2]
[322938944,1713535862942,-5556.19,0.0001527,2]
[322938945,1713535862951,-9305.78,0.00015271,2]
[322938946,1713535862961,-53537.44,0.00015271,2]
[322938947,1713535862971,-5244.64,0.00015271,2]
[322938948,1713535862981,-8123.91,0.00015271,2]
[322938949,1713535862991,-976.56,0.00015272,2]
[322938950,1713535863001,-1085.72,0.00015272,2]
[322938951,1713535863010,-1595.91,0.00015272,2]
[322938952,1713535863020,-500.0,0.00015272,2]
[322938953,1713535863030,-548.92,0.00015272,2]
[322938954,1713535863041,-500.0,0.00015272,2]
[322938955,1713535863059,-500.0,0.00015272,2]
[322938956,1713535863069,-1733.8,0.00015272,2]
[322938957,1713535863081,-182.92943268,0.00015272,2]
[322938958,1713535863093,-704.82,0.00015272,2]
[322938959,1713535863103,-523.19,0.00015272,2]
[322938960,1713535863113,-912.79,0.00015272,2]
[322938961,1713535863124,-500.0,0.00015272,2]
[322938962,1713535863135,-500.0,0.00015272,2]
[322938963,1713535863146,-500.0,0.00015272,2]
[322938964,1713535863157,-500.0,0.00015272,2]
[322938965,1713535863168,-658.18,0.00015272,2]
[322938966,1713535863178,-500.0,0.00015272,2]
[322938967,1713535863188,-500.00491829,0.00015272,2]
[322938968,1713535863198,-500.0,0.00015272,2]
[322938969,1713535863208,-2758.33,0.00015272,2]
[322938970,1713535863218,-1541.04,0.00015272,2]
[322938971,1713535863228,-638.15,0.00015272,2]
[322938972,1713535863238,-1489.48,0.00015272,2]
[322938973,1713535863248,-1000.28,0.00015272,2]
[322938974,1713535863257,-1125.26,0.00015272,2]
[322938975,1713535863268,-500.0,0.00015272,2]
[322938976,1713535863277,-500.0,0.00015272,2]
[322938977,1713535863287,-500.0,0.00015272,2]
[322938978,1713535863297,-500.0,0.00015272,2]
[322938979,1713535863313,-792.31,0.00015272,2]
[322938980,1713535863323,-500.0,0.00015272,2]
[322938981,1713535863332,-500.0,0.00015272,2]
[322938982,1713535863342,-767.04,0.00015272,2]
[322938983,1713535863351,-2722.96,0.00015272,2]
[322938984,1713535863360,-500.0,0.00015272,2]
[322938985,1713535863370,-644.26,0.00015272,2]
[322938986,1713535863380,-634.32,0.00015272,2]
[322938987,1713535863390,-839.12,0.00015272,2]
[322938988,1713535863401,-1210.63,0.00015272,2]
[322938989,1713535863411,-1160.87,0.00015272,2]
[322938990,1713535863421,-1583.39,0.00015272,2]
[322938991,1713535863432,-761.24,0.00015272,2]
[322938992,1713535863442,-500.0,0.00015272,2]
[322938993,1713535863453,-1970.76,0.00015272,2]
[322938994,1713535863464,-562.02,0.00015272,2]
[322938995,1713535863474,-500.0,0.00015272,2]
[322938996,1713535863485,-500.0,0.00015272,2]
[322938997,1713535863495,-2158.3,0.00015272,2]
[322938998,1713535863505,-500.0,0.00015272,2]
[322938999,1713535863514,-1279.73,0.00015272,2]
[322939000,1713535863524,-500.0,0.00015272,2]
[322939001,1713535863534,-1932.36,0.00015272,2]
[322939002,1713535863545,-997.52,0.00015272,2]
[322939003,1713535863560,-782.17,0.00015272,2]
[322939004,1713535863569,-500.0,0.00015272,2]
[322939005,1713535863578,-500.0,0.00015272,2]
[322939006,1713535863588,-500.0,0.00015272,2]
[322939007,1713535863601,-508.83,0.00015272,2]
[322939008,1713535863611,-1362.32,0.00015272,2]
[322939009,1713535863621,-330.64069955,0.00015272,2]
[322939010,1713535863631,-2409.76,0.00015272,2]
[322939011,1713535863642,-500.0,0.00015272,2]
[322939012,1713535863652,-733.82,0.00015272,2]
[322939013,1713535863663,-500.0,0.00015272,2]
[322939014,1713535863677,-919.91,0.00015272,2]
[322939015,1713535863687,-500.0,0.00015272,2]
[322939016,1713535863697,-1149.42,0.00015272,2]
[322939017,1713535863707,-439.0812808,0.00015272,2]
[322939018,1713535863717,-500.0,0.00015272,2]
[322939019,1713535863726,-500.0,0.00015272,2]
[322939020,1713535863736,-587.35,0.00015272,2]
[322939021,1713535863746,-2223.17,0.00015272,2]
[322939022,1713535863756,-1543.23,0.00015272,2]
[322939023,1713535863767,-1155.12,0.00015272,2]
[322939024,1713535863777,-828.07,0.00015272,2]
[322939025,1713535863787,-500.0,0.00015272,2]
[322939026,1713535863797,-647.16,0.00015272,2]
[322939027,1713535863813,-500.0,0.00015272,2]
[322939028,1713535863823,-500.0,0.00015272,2]
[322939029,1713535863833,-500.0,0.00015272,2]
[322939030,1713535863844,-410.78854867,0.00015272,2]
[322939031,1713535863853,-653.49,0.00015272,2]
[322939032,1713535863863,-500.0,0.00015272,2]
[322939033,1713535863874,-1476.88,0.00015272,2]
[322939034,1713535863884,-1436.32,0.00015272,2]
[322939035,1713535863894,-921.54,0.00015272,2]
[322939036,1713535863904,-500.0,0.00015272,2]
[322939037,1713535863914,-500.0,0.00015272,2]
[322939038,1713535863924,-831.97,0.00015272,2]
[322939039,1713535863934,-516.72241046,0.00015272,2]
[322939040,1713535863944,-500.0,0.00015272,2]
[322939041,1713535863954,-500.0,0.00015272,2]
[322939042,1713535863963,-500.0,0.00015272,2]
[322939043,1713535863973,-500.0,0.00015272,2]
[322939044,1713535863983,-500.0,0.00015272,2]
[322939045,1713535863993,-500.0,0.00015272,2]
[322939046,1713535864003,-936.87,0.00015272,2]
[322939047,1713535864013,-543.04,0.00015272,2]
[322939048,1713535864024,-500.0,0.00015272,2]
[322939049,1713535864034,-500.0,0.00015272,2]
[322939050,1713535864045,-500.0,0.00015272,2]
[322939051,1713535864060,-500.0,0.00015272,2]
[322939052,1713535864070,-500.0,0.00015272,2]
[322939053,1713535864080,-1453.48,0.00015272,2]
[322939054,1713535864091,-500.0,0.00015272,2]
[322939055,1713535864101,-500.0,0.00015272,2]
[322939056,1713535864110,-500.0,0.00015272,2]
[322939057,1713535864121,-500.0,0.00015272,2]
[322939058,1713535864130,-500.0,0.00015272,2]
[322939059,1713535864142,-1473.7,0.00015272,2]
[322939060,1713535864152,-500.0,0.00015272,2]
[322939061,1713535864162,-1154.08,0.00015272,2]
[322939062,1713535864172,-500.0,0.00015272,2]
[322939063,1713535864182,-905.53,0.00015272,2]
[322939064,1713535864192,-500.0,0.00015272,2]
[322939065,1713535864202,-2205.17,0.00015272,2]
[322939066,1713535864212,-526.01,0.00015272,2]
[322939067,1713535864222,-500.0,0.00015272,2]
[322939068,1713535864232,-1072.35,0.00015272,2]
[322939069,1713535864242,-1154.09,0.00015272,2]
[322939070,1713535864252,-500.0,0.00015272,2]
[322939071,1713535864262,-500.0,0.00015272,2]
[322939072,1713535864272,-500.0,0.00015272,2]
[322939073,1713535864282,-966.42,0.00015272,2]
[322939074,1713535864292,-626.82,0.00015272,2]
[322939075,1713535864305,-500.0,0.00015272,2]
[322939076,1713535864314,-2432.17,0.00015272,2]
[322939077,1713535864324,-839.85,0.00015272,2]
[322939078,1713535864334,-500.0,0.00015272,2]
[322939079,1713535864344,-500.0,0.00015272,2]
[322939080,1713535864354,-500.0,0.00015272,2]
[322939081,1713535864364,-922.92,0.00015272,2]
[322939082,1713535864374,-500.0,0.00015272,2]
[322939083,1713535864385,-500.0,0.00015272,2]
[322939084,1713535864395,-500.0,0.00015272,2]
[322939085,1713535864405,-500.0,0.00015272,2]
[322939086,1713535864416,-500.0,0.00015272,2]
[322939087,1713535864427,-1553.21,0.00015272,2]
[322939088,1713535864437,-500.0,0.00015272,2]
[322939089,1713535864448,-1979.16,0.00015272,2]
[322939090,1713535864458,-592.35,0.00015272,2]
[322939091,1713535864467,-1369.12,0.00015272,2]
[322939092,1713535864478,-985.05,0.00015272,2]
[322939093,1713535864488,-500.0,0.00015272,2]
[322939094,1713535864499,-500.0,0.00015272,2]
[322939095,1713535864509,-500.0,0.00015272,2]
[322939096,1713535864519,-598.63,0.00015272,2]
[322939097,1713535864529,-1335.68,0.00015272,2]
[322939098,1713535864539,-695.61,0.00015272,2]
[322939099,1713535864549,-536.82,0.00015272,2]
[322939100,1713535864565,-783.18,0.00015272,2]
[322939101,1713535864575,-907.43,0.00015272,2]
[322939102,1713535864585,-500.0,0.00015272,2]
[322939103,1713535864596,-500.0,0.00015272,2]
[322939104,1713535864610,-500.0,0.00015272,2]
[322939105,1713535864620,-500.0,0.00015272,2]
[322939106,1713535864630,-500.0,0.00015272,2]
[322939107,1713535864643,-585.01,0.00015272,2]
[322939108,1713535864654,-500.0,0.00015272,2]
[322939109,1713535864664,-500.0,0.00015272,2]
[322939110,1713535864675,-500.0,0.00015272,2]
[322939111,1713535864689,-500.0,0.00015272,2]
[322939112,1713535864704,-3244.27,0.00015272,2]
[322939113,1713535864716,-745.83,0.00015272,2]
[322939114,1713535864726,-1393.81,0.00015272,2]
[322939115,1713535864737,-500.0,0.00015272,2]
[322939116,1713535864749,-500.0,0.00015272,2]
[322939117,1713535864760,-736.59,0.00015272,2]
[322939118,1713535864773,-500.0,0.00015272,2]
[322939119,1713535864783,-500.0,0.00015272,2]
[322939120,1713535864795,-1155.97,0.00015272,2]
[322939121,1713535864810,-500.0,0.00015272,2]
[322939122,1713535864821,-1455.9,0.00015272,2]
[322939123,1713535864832,-931.35,0.00015272,2]
[322939124,1713535864843,-500.0,0.00015272,2]
[322939125,1713535864855,-500.0,0.00015272,2]
[322939126,1713535864866,-500.0,0.00015272,2]
[322939127,1713535864877,-814.74,0.00015272,2]
[322939128,1713535864889,-944.41,0.00015272,2]
[322939129,1713535864899,-650.39,0.00015272,2]
[322939130,1713535864911,-500.0,0.00015272,2]
[322939131,1713535864922,-1405.86,0.00015272,2]
[322939132,1713535864933,-500.0,0.00015272,2]
[322939133,1713535864944,-1529.93,0.00015272,2]
[322939134,1713535864954,-500.0,0.00015272,2]
[322939135,1713535864965,-500.0,0.00015272,2]
[322939136,1713535864975,-500.0,0.00015272,2]
[322939137,1713535864985,-1810.02,0.00015272,2]
[322939138,1713535864996,-765.3,0.00015272,2]
[322939139,1713535865006,-2885.93,0.00015272,2]
[322939140,1713535865016,-988.91,0.00015272,2]
[322939141,1713535865026,-1094.15,0.00015272,2]
[322939142,1713535865036,-2263.75,0.00015272,2]
[322939143,1713535865046,-500.0,0.00015272,2]
[322939144,1713535865060,-500.0,0.00015272,2]
[322939145,1713535865071,-500.0,0.00015272,2]
[322939146,1713535865081,-500.0,0.00015272,2]
[322939147,1713535865091,-500.0,0.00015272,2]
[322939148,1713535865101,-937.08,0.00015272,2]
[322939149,1713535865111,-500.0,0.00015272,2]
[322939150,1713535865122,-500.0,0.00015272,2]
[322939151,1713535865132,-500.0,0.00015272,2]
[322939152,1713535865142,-524.6,0.00015272,2]
[322939153,1713535865152,-2850.78,0.00015272,2]
[322939154,1713535865162,-1250.61,0.00015272,2]
[322939155,1713535865172,-765.0,0.00015272,2]
[322939156,1713535865182,-500.0,0.00015272,2]
[322939157,1713535865192,-516.91,0.00015272,2]
[322939158,1713535865202,-1174.28,0.00015272,2]
[322939159,1713535865212,-1050.54,0.00015272,2]
[322939160,1713535865222,-500.0,0.00015272,2]
[322939161,1713535865231,-2154.19,0.00015272,2]
[322939162,1713535865242,-500.0,0.00015272,2]
[322939163,1713535865252,-1168.31,0.00015272,2]
[322939164,1713535865262,-1313.14,0.00015272,2]
[322939165,1713535865272,-500.0,0.00015272,2]
[322939166,1713535865282,-1806.46,0.00015272,2]
[322939167,1713535865291,-500.0,0.00015272,2]
[322939168,1713535865304,-500.0,0.00015272,2]
[322939169,1713535865314,-500.0,0.00015272,2]
[322939170,1713535865660,-773.55,0.00015272,2]
[322939171,1713535865671,-500.0,0.00015272,2]
[322939172,1713535865682,-908.87,0.00015272,2]
[322939173,1713535865692,-1232.96,0.00015272,2]
[322939174,1713535865702,-2552.13,0.00015272,2]
[322939175,1713535865712,-1067.76,0.00015272,2]
[322939176,1713535865722,-500.0,0.00015272,2]
[322939177,1713535865731,-500.0,0.00015272,2]
[322939178,1713535865741,-500.0,0.00015272,2]
[322939179,1713535865751,-500.0,0.00015272,2]
[322939180,1713535865760,-976.02,0.00015272,2]
[322939181,1713535865770,-500.0,0.00015272,2]
[322939182,1713535865780,-500.61,0.00015272,2]
[322939183,1713535865789,-1081.44,0.00015272,2]
[322939184,1713535865799,-595.69,0.00015272,2]
[322939185,1713535865812,-531.86,0.00015272,2]
[322939186,1713535865822,-1026.51,0.00015272,2]
[322939187,1713535865831,-500.0,0.00015272,2]
[322939188,1713535865841,-500.0,0.00015272,2]
[322939189,1713535865852,-1415.13,0.00015272,2]
[322939190,1713535865862,-500.0,0.00015272,2]
[322939191,1713535865871,-500.0,0.00015272,2]
[322939192,1713535865881,-500.0,0.00015272,2]
[322939193,1713535865891,-1097.06,0.00015272,2]
[322939194,1713535865900,-827.65,0.00015272,2]
[322939195,1713535865909,-500.0,0.00015272,2]
[322939196,1713535865919,-512.9,0.00015272,2]
[322939197,1713535865928,-1727.14,0.00015272,2]
[322939198,1713535865937,-2285.14,0.00015272,2]
[322939199,1713535865947,-500.0,0.00015272,2]
[322939200,1713535865956,-766.84,0.00015272,2]
[322939201,1713535865966,-841.6,0.00015272,2]
[322939202,1713535865976,-568.31,0.00015272,2]
[322939203,1713535865986,-500.0,0.00015272,2]
[322939204,1713535865995,-1292.8,0.00015272,2]
[322939205,1713535866005,-244.74000028,0.00015272,2]
[322939206,1713535866014,-500.0,0.00015272,2]
[322939207,1713535866023,-500.0,0.00015272,2]
[322939208,1713535866034,-1143.03,0.00015272,2]
[322939209,1713535866043,-1941.29,0.00015272,2]
[322939210,1713535866056,-1479.43,0.00015272,2]
[322939211,1713535866066,-500.0,0.00015272,2]
[322939212,1713535866075,-577.24,0.00015272,2]
[322939213,1713535866085,-1941.82,0.00015272,2]
[322939214,1713535866095,-500.0,0.00015272,2]
[322939215,1713535866104,-500.0,0.00015272,2]
[322939216,1713535866113,-1405.98,0.00015272,2]
[322939217,1713535866122,-852.62,0.00015272,2]
[322939218,1713535866132,-500.0,0.00015272,2]
[322939219,1713535866141,-500.0,0.00015272,2]
[322939220,1713535866150,-500.0,0.00015272,2]
[322939221,1713535866160,-500.0,0.00015272,2]
[322939222,1713535866170,-806.19,0.00015272,2]
[322939223,1713535866179,-598.56,0.00015272,2]
[322939224,1713535866188,-2706.55,0.00015272,2]
[322939225,1713535866198,-500.0,0.00015272,2]
[322939226,1713535866207,-500.0,0.00015272,2]
[322939227,1713535866217,-698.6,0.00015272,2]
[322939228,1713535866227,-500.0,0.00015272,2]
[322939229,1713535866236,-1458.1,0.00015272,2]
[322939230,1713535866245,-500.0,0.00015272,2]
[322939231,1713535866254,-500.0,0.00015272,2]
[322939232,1713535866264,-1248.98,0.00015272,2]
[322939233,1713535866273,-500.0,0.00015272,2]
[322939234,1713535866282,-1033.18,0.00015272,2]
[322939235,1713535866292,-500.0,0.00015272,2]
[322939236,1713535866305,-649.60822994,0.00015272,2]
[322939237,1713535866315,-500.0,0.00015272,2]
[322939238,1713535866324,-2305.13,0.00015272,2]
[322939239,1713535866334,-638.82,0.00015272,2]
[322939240,1713535866343,-500.0,0.00015272,2]
[322939241,1713535866353,-2011.14,0.00015272,2]
[322939242,1713535866362,-500.0,0.00015272,2]
[322939243,1713535866371,-500.0,0.00015272,2]
[322939244,1713535866381,-500.0,0.00015272,2]
[322939245,1713535866390,-500.0,0.00015272,2]
[322939246,1713535866400,-1960.57,0.00015272,2]
[322939247,1713535866409,-601.48,0.00015272,2]
[322939248,1713535866419,-1858.15,0.00015272,2]
[322939249,1713535866428,-500.0,0.00015272,2]
[322939250,1713535866437,-658.72,0.00015272,2]
[322939251,1713535866447,-500.0,0.00015272,2]
[322939252,1713535866459,-500.0,0.00015272,2]
[322939253,1713535866470,-500.0,0.00015272,2]
[322939254,1713535866481,-500.0,0.00015272,2]
[322939255,1713535866492,-1281.13,0.00015272,2]
[322939256,1713535866502,-1472.8,0.00015272,2]
[322939257,1713535866513,-500.0,0.00015272,2]
[322939258,1713535866524,-500.0,0.00015272,2]
[322939259,1713535866534,-719.07,0.00015272,2]
[322939260,1713535866544,-500.0,0.00015272,2]
[322939261,1713535866558,-1672.02,0.00015272,2]
[322939262,1713535866568,-866.38,0.00015272,2]
[322939263,1713535866578,-2306.99,0.00015272,2]
[322939264,1713535866589,-1013.57,0.00015272,2]
[322939265,1713535866601,-500.0,0.00015272,2]
[322939266,1713535866611,-1186.87,0.00015272,2]
[322939267,1713535866620,-500.0,0.00015272,2]
[322939268,1713535866630,-1832.01,0.00015272,2]
[322939269,1713535866640,-774.6,0.00015272,2]
[322939270,1713535866650,-561.05311314,0.00015272,2]
[322939271,1713535866661,-500.0,0.00015272,2]
[322939272,1713535866674,-435.27876603,0.00015272,2]
[322939273,1713535866685,-500.0,0.00015272,2]
[322939274,1713535866695,-500.0,0.00015272,2]
[322939275,1713535866705,-916.09,0.00015272,2]
[322939276,1713535866716,-500.0,0.00015272,2]
[322939277,1713535866726,-1477.7,0.00015272,2]
[322939278,1713535866736,-583.73,0.00015272,2]
[322939279,1713535866746,-501.110185,0.00015273,2]
[322939280,1713535866757,-294.82292748,0.00015273,2]
[322939281,1713535866767,-500.0,0.00015273,2]
[322939282,1713535866777,-500.0,0.00015273,2]
[322939283,1713535866787,-500.0,0.00015273,2]
[322939284,1713535866797,-500.0,0.00015273,2]
[322939285,1713535866811,-500.0,0.00015273,2]
[322939286,1713535866821,-500.0,0.00015273,2]
[322939287,1713535866832,-500.0,0.00015273,2]
[322939288,1713535866842,-500.0,0.00015273,2]
[322939289,1713535866851,-181.66572916,0.00015273,2]
[322939290,1713535866862,-500.0,0.00015273,2]
[322939291,1713535866872,-500.0,0.00015273,2]
[322939292,1713535866882,-500.0,0.00015273,2]
[322939293,1713535866891,-500.0,0.00015273,2]
[322939294,1713535866902,-500.0,0.00015273,2]
[322939295,1713535866912,-500.0,0.00015273,2]
[322939296,1713535866922,-500.0,0.00015273,2]
[322939297,1713535866932,-500.0,0.00015273,2]
[322939298,1713535866943,-500.0,0.00015273,2]
[322939299,1713535866953,-500.0,0.00015273,2]
[322939300,1713535866963,-500.0,0.00015273,2]
[322939301,1713535866973,-500.0,0.00015273,2]
[322939302,1713535866982,-500.0,0.00015273,2]
[322939303,1713535866992,-500.0,0.00015273,2]
[322939304,1713535867001,-500.0,0.00015273,2]
[322939305,1713535867011,-500.0,0.00015273,2]
[322939306,1713535867020,-500.0,0.00015273,2]
[322939307,1713535867031,-536.70266387,0.00015273,2]
[322939308,1713535867040,-500.0,0.00015273,2]
[322939309,1713535867052,-534.86451898,0.00015273,2]
[322939310,1713535867064,-500.0,0.00015273,2]
[322939311,1713535867074,-500.0,0.00015273,2]
[322939312,1713535867084,-500.0,0.00015273,2]
[322939313,1713535867094,-500.0,0.00015273,2]
[322939314,1713535867104,-500.0,0.00015273,2]
[322939315,1713535867114,-500.0,0.00015273,2]
[322939316,1713535867124,-500.0,0.00015273,2]
[322939317,1713535867135,-500.0,0.00015273,2]
[322939318,1713535867145,-500.0,0.00015273,2]
[322939319,1713535867155,-500.0,0.00015273,2]
[322939320,1713535867165,-500.0,0.00015273,2]
[322939321,1713535867175,-500.0,0.00015273,2]
[322939322,1713535867185,-500.0,0.00015273,2]
[322939323,1713535867194,-500.0,0.00015273,2]
[322939324,1713535867204,-500.0,0.00015273,2]
[322939325,1713535867214,-500.0,0.00015273,2]
[322939326,1713535867224,-500.0,0.00015273,2]
[322939327,1713535867234,-500.0,0.00015273,2]
[322939328,1713535867244,-500.0,0.00015273,2]
[322939329,1713535867254,-500.0,0.00015273,2]
[322939330,1713535867264,-500.0,0.00015273,2]
[322939331,1713535867274,-500.0,0.00015273,2]
[322939332,1713535867284,-500.0,0.00015273,2]
[322939333,1713535867294,-500.0,0.00015273,2]
[322939334,1713535867307,-500.0,0.00015273,2]
[322939335,1713535867316,-500.0,0.00015273,2]
[322939336,1713535867326,-500.0,0.00015273,2]
[322939337,1713535867336,-500.0,0.00015273,2]
[322939338,1713535867345,-500.0,0.00015273,2]
[322939339,1713535867355,-500.0,0.00015273,2]
[322939340,1713535867365,-500.0,0.00015273,2]
[322939341,1713535867374,-615.86883522,0.00015273,2]
[322939342,1713535867384,-500.0,0.00015273,2]
[322939343,1713535867393,-500.0,0.00015273,2]
[322939344,1713535867403,-500.0,0.00015273,2]
[322939345,1713535867412,-500.0,0.00015273,2]
[322939346,1713535867422,-500.0,0.00015273,2]
[322939347,1713535867432,-549.1699011,0.00015273,2]
[322939348,1713535867441,-500.0,0.00015273,2]
[322939349,1713535867451,-500.0,0.00015273,2]
[322939350,1713535867460,-500.0,0.00015273,2]
[322939351,1713535867470,-550.34457557,0.00015273,2]
[322939352,1713535867480,-500.0,0.00015273,2]
[322939353,1713535867490,-500.0,0.00015273,2]
[322939354,1713535867499,-169.94675257,0.00015273,2]
[322939355,1713535867509,-500.0,0.00015273,2]
[322939356,1713535867518,-500.0,0.00015273,2]
[322939357,1713535867527,-500.0,0.00015273,2]
[322939358,1713535867537,-235.98518549,0.00015273,2]
[322939359,1713535867546,-500.0,0.00015273,2]
[322939360,1713535867558,-500.0,0.00015273,2]
[322939361,1713535867567,-594.85,0.00015273,2]
[322939362,1713535867577,-2683.22,0.00015273,2]
[322939363,1713535867588,-500.0,0.00015273,2]
[322939364,1713535867598,-1223.92,0.00015273,2]
[322939365,1713535867610,-3769.27,0.00015273,2]
[322939366,1713535867620,-500.0,0.00015273,2]
[322939367,1713535867630,-500.0,0.00015273,2]
[322939368,1713535867640,-500.0,0.00015273,2]
[322939369,1713535867649,-2713.38,0.00015273,2]
[322939370,1713535867659,-500.0,0.00015273,2]
[322939371,1713535867668,-500.0,0.00015273,2]
[322939372,1713535867679,-2503.47,0.00015273,2]
[322939373,1713535867689,-4027.8,0.00015273,2]
[322939374,1713535867698,-151.0,0.00015273,2]
[322939375,1713535867709,-500.0,0.00015273,2]
[322939376,1713535867718,-2546.1,0.00015273,2]
[322939377,1713535867728,-500.0,0.00015273,2]
[322939378,1713535867738,-500.0,0.00015273,2]
[322939379,1713535867747,-1841.36,0.00015273,2]
[322939380,1713535867757,-500.0,0.00015273,2]
[322939381,1713535867767,-4185.87,0.00015273,2]
[322939382,1713535867776,-212.86916189,0.00015273,2]
[322939383,1713535867786,-4303.66,0.00015273,2]